fUST/lending_fUST_20240409
["ID","MTS","AMOUNT","RATE_DAILY","PERIOD"]
[321925127,1712637043546,-500.0,0.00038273,5]
[321925129,1712637043554,-500.0,0.00038273,5]
[321925131,1712637043563,-1553.97,0.00038273,5]
[321925133,1712637043572,-502.76,0.00038273,5]
[321925135,1712637043581,-500.0,0.00038273,5]
[321925137,1712637043590,-500.0,0.00038273,5]
[321925139,1712637043599,-913.71,0.00038273,5]
[321925141,1712637043608,-500.0,0.00038273,5]
[321925143,1712637043617,-500.0,0.00038273,5]
[321925145,1712637043626,-500.0,0.00038273,5]
[321925147,1712637043635,-580.31,0.00038273,5]
[321925149,1712637043645,-1239.34,0.00038273,5]
[321925151,1712637043654,-500.0,0.00038273,5]
[321925153,1712637043665,-500.0,0.00038273,5]
[321925155,1712637043673,-1169.08,0.00038273,5]
[321925157,1712637043682,-242.90453271,0.00038273,5]
[321925159,1712637043691,-426.41377334,0.00038273,5]
[321925161,1712637043700,-509.02395039,0.00038273,5]
[321925163,1712637043709,-531.15175405,0.00038273,5]
[321925165,1712637043718,-500.0,0.00038273,5]
[321925167,1712637043726,-500.0,0.00038273,5]
[321925169,1712637043736,-500.0,0.00038273,5]
[321925171,1712637043745,-504.31099822,0.00038273,5]
[321925172,1712637043755,-1952.48,0.00038273,5]
[321925174,1712637043765,-500.0,0.00038273,5]
[321925176,1712637043774,-500.0,0.00038273,5]
[321925178,1712637043783,-808.48,0.00038273,5]
[321925180,1712637043792,-504.48504271,0.00038273,5]
[321925183,1712637043801,-501.09205567,0.00038273,5]
[321925185,1712637043810,-500.0,0.00038273,5]
[321925187,1712637043819,-500.0,0.00038273,5]
[321925188,1712637043828,-500.0,0.00038273,5]
[321925191,1712637043839,-500.0,0.00038273,5]
[321925193,1712637043848,-249.90501089,0.00038273,5]
[321925195,1712637043857,-500.0,0.00038273,5]
[321925197,1712637043867,-500.0,0.00038273,5]
[321925199,1712637043875,-500.0,0.00038273,5]
[321925201,1712637043884,-500.0,0.00038273,5]
[321925203,1712637043894,-3256.68,0.00038273,5]
[321925205,1712637043903,-2681.28,0.00038273,5]
[321925207,1712637043912,-500.0,0.00038273,5]
[321925209,1712637043920,-500.0,0.00038273,5]
[321925211,1712637043930,-500.0,0.00038273,5]
[321925213,1712637043939,-501.15600288,0.00038273,5]
[321925215,1712637043948,-500.0,0.00038273,5]
[321925217,1712637043957,-501.82630852,0.00038273,5]
[321925219,1712637043967,-500.0,0.00038273,5]
[321925220,1712637043976,-500.0,0.00038273,5]
[321925222,1712637043985,-500.0,0.00038273,5]
[321925224,1712637043994,-510.38,0.00038273,5]
[321925226,1712637044003,-500.0,0.00038273,5]
[321925228,1712637044012,-500.0,0.00038273,5]
[321925230,1712637044021,-500.0,0.00038273,5]
[321925232,1712637044030,-500.0,0.00038273,5]
[321925234,1712637044039,-500.0,0.00038273,5]
[321925236,1712637044048,-154.920562,0.00038273,2]
[321925237,1712637044058,-500.0,0.00038273,5]
[321925238,1712637044067,-154.920562,0.00038273,2]
[321925239,1712637044076,-500.0,0.00038273,5]
[321925240,1712637044085,-500.0,0.00038273,5]
[321925241,1712637044094,-1809.09,0.00038273,5]
[321925242,1712637044103,-500.0,0.00038273,5]
[321925243,1712637044113,-503.01460215,0.00038273,5]
[321925244,1712637044122,-500.0,0.00038273,5]
[321925245,1712637044132,-553.67930524,0.00038273,5]
[321925246,1712637044141,-295.644813,0.00038273,2]
[321925247,1712637044151,-295.644813,0.00038273,2]
[321925249,1712637044160,-151.0,0.00038273,2]
[321925251,1712637044169,-151.0,0.00038273,2]
[321925253,1712637044179,-151.0,0.00038273,2]
[321925255,1712637044191,-385.25269463,0.00038273,5]
[321925257,1712637044199,-670.128236,0.00038273,2]
[321925259,1712637044208,-670.128236,0.00038273,2]
[321925261,1712637044217,-500.0,0.00038273,5]
[321925263,1712637044226,-500.0,0.00038273,5]
[321925265,1712637044236,-515.78,0.00038273,5]
[321925267,1712637044246,-151.0,0.00038273,2]
[321925268,1712637044255,-151.0,0.00038273,2]
[321925271,1712637044264,-218.389366,0.00038273,2]
[321925273,1712637044276,-151.0,0.00038273,2]
[321925274,1712637044286,-500.0,0.00038273,5]
[321925276,1712637044295,-151.0,0.00038273,2]
[321925278,1712637044304,-292.04228706,0.00038273,5]
[321925280,1712637044313,-500.0,0.00038273,5]
[321925282,1712637044322,-500.0,0.00038273,5]
[321925284,1712637044331,-151.0,0.00038273,2]
[321925286,1712637044341,-500.0,0.00038273,5]
[321925288,1712637044350,-500.0,0.00038273,5]
[321925290,1712637044359,-448.454977,0.00038273,2]
[321925292,1712637044368,-500.0,0.00038273,5]
[321925295,1712637044378,-151.0,0.00038304,2]
[321925296,1712637044387,-1688.494734,0.00038304,2]
[321925299,1712637044397,-1688.494734,0.00038304,2]
[321925301,1712637044406,-500.0,0.0003831,5]
[321925303,1712637044418,-503.40518269,0.0003831,5]
[321925310,1712637044478,-189.67699352,0.0003831,5]
[321925312,1712637044488,-501.81180401,0.0003831,5]
[321925314,1712637044497,-500.0,0.0003831,5]
[321925316,1712637044506,-889.35,0.0003831,5]
[321925318,1712637044515,-500.0,0.0003831,5]
[321925320,1712637044524,-500.0,0.0003831,5]
[321925322,1712637044533,-500.0,0.0003831,5]
[321925324,1712637044543,-500.0,0.0003831,5]
[321925326,1712637044552,-337.43909331,0.0003831,5]
[321925328,1712637044561,-500.0,0.0003831,5]
[321925330,1712637044570,-500.0,0.0003831,5]
[321925332,1712637044580,-500.0,0.0003831,5]
[321925334,1712637044591,-500.0,0.0003831,5]
[321925336,1712637044600,-500.0,0.0003831,5]
[321925338,1712637044610,-500.0,0.0003831,5]
[321925340,1712637044620,-154.920562,0.0003831,2]
[321925342,1712637044629,-154.920562,0.0003831,2]
[321925344,1712637044638,-500.0,0.0003831,5]
[321925346,1712637044647,-500.0,0.0003831,5]
[321925348,1712637044656,-500.0,0.0003831,5]
[321925350,1712637044666,-500.0,0.0003831,5]
[321925352,1712637044675,-500.0,0.0003831,5]
[321925354,1712637044685,-529.81993252,0.0003831,5]
[321925356,1712637044694,-500.0,0.0003831,5]
[321925358,1712637044703,-1895.63684714,0.00038313,2]
[321925360,1712637044712,-500.0,0.00038414,5]
[321925362,1712637044721,-1763.21,0.00038414,5]
[321925364,1712637044732,-500.0,0.00038416,5]
[321925366,1712637044741,-1374.46,0.00038416,5]
[321925368,1712637044751,-500.0,0.00038416,5]
[321925370,1712637044760,-364.60645534,0.00038416,5]
[321925372,1712637044769,-504.801194,0.00038416,5]
[321925374,1712637044779,-500.0,0.00038416,5]
[321925376,1712637044788,-500.0,0.00038416,5]
[321925378,1712637044797,-961.3,0.00038416,5]
[321925380,1712637044806,-500.0,0.00038416,5]
[321925382,1712637044816,-331.13895791,0.00038416,5]
[321925384,1712637044826,-500.0,0.00038416,5]
[321925386,1712637044835,-435.90408624,0.00038416,5]
[321925388,1712637044844,-563.72,0.00038416,5]
[321925390,1712637044853,-160.189686,0.00038416,2]
[321925392,1712637044863,-151.0,0.00038416,2]
[321925394,1712637044873,-151.0,0.00038416,2]
[321925396,1712637044882,-151.0,0.00038416,2]
[321925398,1712637044892,-500.0,0.00038416,5]
[321925400,1712637044902,-702.01,0.00038416,5]
[321925402,1712637044911,-2159.33,0.00038416,5]
[321925404,1712637044921,-946.23,0.00038416,5]
[321925406,1712637044930,-151.0,0.00038416,2]
[321925408,1712637044940,-1223.65,0.00038416,5]
[321925410,1712637044949,-500.0,0.00038416,5]
[321925412,1712637044959,-1609.42,0.00038416,5]
[321925414,1712637044968,-500.0,0.00038416,5]
[321925416,1712637044978,-11570.82,0.00038416,5]
[321925418,1712637044988,-295.644813,0.00038416,2]
[321925420,1712637044997,-295.644813,0.00038416,2]
[321925422,1712637045006,-1928.79,0.00038416,5]
[321925424,1712637045015,-1920.18,0.00038416,5]
[321925426,1712637045024,-2426.33,0.00038416,5]
[321925428,1712637045033,-502.23267166,0.00038416,5]
[321925430,1712637045042,-649.36,0.00038416,5]
[321925432,1712637045051,-151.0,0.00038416,2]
[321925434,1712637045060,-656.47,0.00038416,5]
[321925436,1712637045070,-168.787488,0.00038416,2]
[321925438,1712637045079,-151.0,0.00038416,2]
[321925440,1712637045088,-500.0,0.00038416,5]
[321925442,1712637045097,-1029.6,0.00038416,5]
[321925444,1712637045106,-500.0,0.00038416,5]
[321925445,1712637045114,-500.0,0.00038416,5]
[321925447,1712637045124,-670.128236,0.00038416,2]
[321925450,1712637045134,-16213.83,0.00038416,5]
[321925452,1712637045144,-517.61,0.00038416,5]
[321925454,1712637045153,-670.128236,0.00038416,2]
[321925455,1712637045163,-2175.74,0.00038416,5]
[321925457,1712637045172,-2076.86,0.00038416,5]
[321925459,1712637045181,-500.0,0.00038416,5]
[321925462,1712637045195,-500.0,0.00038416,5]
[321925463,1712637045204,-500.0,0.00038416,5]
[321925465,1712637045213,-5807.65,0.00038416,5]
[321925467,1712637045222,-911.93,0.00038416,5]
[321925469,1712637045232,-151.0,0.00038416,2]
[321925471,1712637045241,-151.0,0.00038416,2]
[321925473,1712637045250,-500.0,0.00038416,5]
[321925475,1712637045259,-151.0,0.00038416,2]
[321925477,1712637045268,-500.0,0.00038416,5]
[321925479,1712637045277,-151.0,0.00038416,2]
[321925481,1712637045287,-2174.38,0.00038416,5]
[321925483,1712637045296,-151.0,0.00038416,2]
[321925486,1712637045306,-500.0,0.00038416,5]
[321925488,1712637045315,-912.83,0.00038416,5]
[321925495,1712637045371,-10635.83,0.00038416,5]
[321925497,1712637045381,-1461.88,0.00038416,5]
[321925499,1712637045390,-3363.44,0.00038416,5]
[321925501,1712637045400,-500.0,0.00038416,5]
[321925503,1712637045409,-4123.45,0.00038416,5]
[321925505,1712637045418,-6091.08,0.00038416,5]
[321925507,1712637045426,-500.0,0.00038416,5]
[321925509,1712637045436,-448.454977,0.00038416,2]
[321925511,1712637045445,-500.0,0.00038416,5]
[321925513,1712637045454,-151.0,0.00038425,2]
[321925515,1712637045463,-1688.494734,0.00038425,2]
[321925517,1712637045473,-1688.494734,0.00038425,2]
[321925519,1712637045483,-231.278903,0.00038425,2]
[321925521,1712637045492,-151.0,0.00038425,2]
[321925523,1712637045501,-151.300064,0.00038425,2]
[321925525,1712637045510,-151.0,0.00038425,2]
[321925527,1712637045519,-1895.63684714,0.00038451,2]
[321925529,1712637045529,-1152.0,0.00038477,3]
[321925531,1712637045538,-1706.99,0.00038521,7]
[321925533,1712637045547,-500.0,0.00038547,5]
[321925535,1712637045556,-707.35,0.00038547,5]
[321925537,1712637045565,-500.0,0.00038547,5]
[321925539,1712637045575,-468.14624828,0.00038547,5]
[321925541,1712637045584,-2004.75,0.00038547,2]
[321925543,1712637045593,-390.36034507,0.00038547,5]
[321925545,1712637045603,-500.0,0.00038547,5]
[321925547,1712637045612,-500.0,0.00038547,5]
[321925549,1712637045621,-500.0,0.00038547,5]
[321925551,1712637045630,-1181.01,0.00038547,5]
[321925553,1712637045639,-501.812222,0.00038547,5]
[321925555,1712637045648,-500.0,0.00038547,5]
[321925557,1712637045657,-500.0,0.00038547,5]
[321925559,1712637045666,-500.0,0.00038547,5]
[321925561,1712637045674,-500.0,0.00038547,5]
[321925564,1712637045683,-500.0,0.00038547,5]
[321925567,1712637045693,-500.0,0.00038547,5]
[321925569,1712637045702,-500.0,0.00038547,5]
[321925571,1712637045710,-1553.97,0.00038547,5]
[321925573,1712637045719,-502.76,0.00038547,5]
[321925575,1712637045728,-500.0,0.00038547,5]
[321925577,1712637045738,-500.0,0.00038547,5]
[321925578,1712637045748,-913.71,0.00038547,5]
[321925581,1712637045758,-500.0,0.00038547,5]
[321925582,1712637045767,-500.0,0.00038547,5]
[321925584,1712637045776,-500.0,0.00038547,5]
[321925586,1712637045785,-580.31,0.00038547,5]
[321925589,1712637045795,-1239.34,0.00038547,5]
[321925591,1712637045804,-500.0,0.00038547,5]
[321925593,1712637045813,-500.0,0.00038547,5]
[321925595,1712637045821,-1169.08,0.00038547,5]
[321925596,1712637045830,-500.0,0.00038547,5]
[321925598,1712637045839,-500.0,0.00038547,5]
[321925600,1712637045848,-500.0,0.00038547,5]
[321925602,1712637045857,-1952.48,0.00038547,5]
[321925604,1712637045866,-504.57614176,0.00038547,5]
[321925607,1712637045875,-628.06593109,0.00038547,5]
[321925609,1712637045884,-808.48,0.00038547,5]
[321925611,1712637045894,-500.0,0.00038547,5]
[321925614,1712637045903,-500.0,0.00038547,5]
[321925616,1712637045912,-505.60819055,0.00038547,5]
[321925618,1712637045922,-500.0,0.00038547,5]
[321925621,1712637045933,-500.0,0.00038547,5]
[321925623,1712637045942,-500.0,0.00038547,5]
[321925625,1712637045951,-500.0,0.00038547,5]
[321925627,1712637045961,-505.39825563,0.00038547,5]
[321925629,1712637045970,-3256.68,0.00038547,5]
[321925630,1712637045980,-2681.28,0.00038547,5]
[321925633,1712637045990,-500.0,0.00038547,5]
[321925635,1712637045999,-500.0,0.00038547,5]
[321925637,1712637046008,-500.0,0.00038547,5]
[321925639,1712637046017,-500.0,0.00038547,5]
[321925641,1712637046026,-500.0,0.00038547,5]
[321925643,1712637046037,-500.0,0.00038547,5]
[321925645,1712637046046,-500.0,0.00038547,5]
[321925647,1712637046055,-510.38,0.00038547,5]
[321925649,1712637046064,-500.0,0.00038547,5]
[321925651,1712637046073,-502.60549485,0.00038547,5]
[321925653,1712637046083,-500.0,0.00038547,5]
[321925655,1712637046093,-416.69818138,0.00038547,5]
[321925657,1712637046102,-500.0,0.00038547,5]
[321925659,1712637046111,-154.920562,0.00038547,2]
[321925661,1712637046120,-500.0,0.00038547,5]
[321925663,1712637046129,-154.920562,0.00038547,2]
[321925670,1712637046185,-500.0,0.00038547,5]
[321925672,1712637046198,-500.0,0.00038547,5]
[321925674,1712637046208,-1809.09,0.00038547,5]
[321925676,1712637046216,-500.0,0.00038547,5]
[321925678,1712637046226,-591.32482724,0.00038547,5]
[321925680,1712637046237,-295.644813,0.00038547,2]
[321925682,1712637046246,-295.644813,0.00038547,2]
[321925684,1712637046255,-151.0,0.00038547,2]
[321925686,1712637046265,-204.428625,0.00038547,2]
[321925688,1712637046275,-670.128236,0.00038547,2]
[321925690,1712637046284,-670.128236,0.00038547,2]
[321925692,1712637046293,-500.0,0.00038547,5]
[321925694,1712637046302,-500.0,0.00038547,5]
[321925696,1712637046311,-515.78,0.00038547,5]
[321925698,1712637046320,-151.0,0.00038547,2]
[321925700,1712637046329,-151.0,0.00038547,2]
[321925702,1712637046338,-151.0,0.00038547,2]
[321925704,1712637046347,-500.0,0.00038547,5]
[321925706,1712637046357,-151.0,0.00038547,2]
[321925708,1712637046366,-500.0,0.00038547,5]
[321925710,1712637046375,-500.0,0.00038547,5]
[321925712,1712637046386,-151.0,0.00038547,2]
[321925714,1712637046396,-500.0,0.00038547,5]
[321925716,1712637046405,-500.0,0.00038547,5]
[321925718,1712637046414,-448.454977,0.00038547,2]
[321925720,1712637046423,-1688.494734,0.00038578,2]
[321925722,1712637046432,-1688.494734,0.00038578,2]
[321925724,1712637046441,-500.0,0.00038584,5]
[321925726,1712637046450,-500.0,0.00038584,5]
[321925728,1712637046459,-889.35,0.00038584,5]
[321925730,1712637046469,-500.0,0.00038584,5]
[321925732,1712637046481,-500.0,0.00038584,5]
[321925734,1712637046490,-500.0,0.00038584,5]
[321925736,1712637046499,-503.87987524,0.00038584,5]
[321925739,1712637046509,-504.42821858,0.00038584,5]
[321925741,1712637046518,-500.0,0.00038584,5]
[321925743,1712637046527,-500.0,0.00038584,5]
[321925744,1712637046537,-500.0,0.00038584,5]
[321925745,1712637046556,-500.0,0.00038584,5]
[321925746,1712637046570,-500.0,0.00038584,5]
[321925747,1712637046588,-500.0,0.00038584,5]
[321925748,1712637046606,-500.0,0.00038584,5]
[321925749,1712637046621,-500.0,0.00038584,5]
[321925750,1712637046637,-500.0,0.00038584,5]
[321925751,1712637046653,-500.0,0.00038584,5]
[321925752,1712637046670,-500.0,0.00038584,5]
[321925753,1712637046689,-1895.63684714,0.00038588,2]
[321925754,1712637046706,-158.41228465,0.00038609,3]
[321925755,1712637046724,-270.0,0.0003863,14]
[321925756,1712637046743,-500.0,0.00038688,5]
[321925757,1712637046756,-1763.21,0.00038688,5]
[321925758,1712637046773,-500.0,0.0003869,5]
[321925759,1712637046788,-1374.46,0.0003869,5]
[321925760,1712637046803,-500.0,0.0003869,5]
[321925761,1712637046818,-500.0,0.0003869,5]
[321925762,1712637046834,-510.69726211,0.0003869,5]
[321925763,1712637046848,-961.3,0.0003869,5]
[321925764,1712637046862,-500.0,0.0003869,5]
[321925765,1712637046878,-500.0,0.0003869,5]
[321925766,1712637046892,-563.72,0.0003869,5]
[321925767,1712637046906,-154.920562,0.0003869,2]
[321925768,1712637046920,-154.920562,0.0003869,2]
[321925769,1712637046934,-151.0,0.0003869,2]
[321925770,1712637046949,-500.0,0.0003869,5]
[321925771,1712637046963,-702.01,0.0003869,5]
[321925772,1712637046977,-2159.33,0.0003869,5]
[321925773,1712637046993,-946.23,0.0003869,5]
[321925774,1712637047008,-151.0,0.0003869,2]
[321925775,1712637047022,-1223.65,0.0003869,5]
[321925776,1712637047036,-500.0,0.0003869,5]
[321925777,1712637047050,-1609.42,0.0003869,5]
[321925778,1712637047064,-500.0,0.0003869,5]
[321925779,1712637047078,-11570.82,0.0003869,5]
[321925780,1712637047092,-295.644813,0.0003869,2]
[321925781,1712637047107,-295.644813,0.0003869,2]
[321925782,1712637047122,-1928.79,0.0003869,5]
[321925783,1712637047205,-1920.18,0.0003869,5]
[321925784,1712637047215,-2426.33,0.0003869,5]
[321925785,1712637047224,-649.36,0.0003869,5]
[321925786,1712637047235,-151.0,0.0003869,2]
[321925788,1712637047244,-656.47,0.0003869,5]
[321925790,1712637047253,-502.58820334,0.0003869,5]
[321925791,1712637047262,-1029.6,0.0003869,5]
[321925794,1712637047274,-500.0,0.0003869,5]
[321925795,1712637047284,-500.0,0.0003869,5]
[321925797,1712637047293,-16213.83,0.0003869,5]
[321925799,1712637047302,-517.61,0.0003869,5]
[321925801,1712637047311,-670.128236,0.0003869,2]
[321925802,1712637047320,-670.128236,0.0003869,2]
[321925803,1712637047330,-2175.74,0.0003869,5]
[321925804,1712637047339,-2076.86,0.0003869,5]
[321925806,1712637047350,-500.0,0.0003869,5]
[321925808,1712637047359,-500.0,0.0003869,5]
[321925809,1712637047368,-500.0,0.0003869,5]
[321925810,1712637047377,-5807.65,0.0003869,5]
[321925811,1712637047387,-911.93,0.0003869,5]
[321925812,1712637047397,-151.0,0.0003869,2]
[321925813,1712637047406,-151.0,0.0003869,2]
[321925814,1712637047415,-500.0,0.0003869,5]
[321925815,1712637047425,-151.0,0.0003869,2]
[321925816,1712637047435,-500.0,0.0003869,5]
[321925817,1712637047445,-151.0,0.0003869,2]
[321925818,1712637047456,-2174.38,0.0003869,5]
[321925819,1712637047465,-231.308863,0.0003869,2]
[321925820,1712637047476,-500.0,0.0003869,5]
[321925821,1712637047488,-912.83,0.0003869,5]
[321925822,1712637047497,-10635.83,0.0003869,5]
[321925823,1712637047506,-1461.88,0.0003869,5]
[321925824,1712637047515,-3363.44,0.0003869,5]
[321925825,1712637047524,-500.0,0.0003869,5]
[321925826,1712637047533,-4123.45,0.0003869,5]
[321925827,1712637047542,-6091.08,0.0003869,5]
[321925828,1712637047552,-500.0,0.0003869,5]
[321925829,1712637047561,-448.454977,0.0003869,2]
[321925830,1712637047570,-500.0,0.0003869,5]
[321925831,1712637047580,-151.0,0.00038691,2]
[321925832,1712637047589,-1688.494734,0.00038699,2]
[321925833,1712637047598,-1688.494734,0.00038699,2]
[321925834,1712637047607,-1895.63684714,0.00038726,2]
[321925835,1712637047616,-739.0,0.000388,2]
[321925836,1712637047625,-500.0,0.00038821,5]
[321925837,1712637047634,-707.35,0.00038821,5]
[321925838,1712637047643,-500.0,0.00038821,5]
[321925839,1712637047652,-2004.75,0.00038821,2]
[321925840,1712637047662,-500.0,0.00038821,5]
[321925841,1712637047672,-503.61657073,0.00038821,5]
[321925842,1712637047681,-500.0,0.00038821,5]
[321925843,1712637047690,-1181.01,0.00038821,5]
[321925844,1712637047699,-500.0,0.00038821,5]
[321925845,1712637047709,-500.0,0.00038821,5]
[321925846,1712637047718,-500.0,0.00038821,5]
[321925847,1712637047727,-500.0,0.00038821,5]
[321925848,1712637047738,-503.03406492,0.00038821,5]
[321925849,1712637047747,-322.16939544,0.00038821,5]
[321925850,1712637047757,-500.0,0.00038821,5]
[321925851,1712637047766,-1553.97,0.00038821,5]
[321925852,1712637047775,-502.76,0.00038821,5]
[321925853,1712637047784,-500.0,0.00038821,5]
[321925854,1712637047794,-500.0,0.00038821,5]
[321925855,1712637047803,-913.71,0.00038821,5]
[321925856,1712637047813,-500.0,0.00038821,5]
[321925857,1712637047822,-500.0,0.00038821,5]
[321925858,1712637047831,-359.71236778,0.00038821,5]
[321925859,1712637047840,-580.31,0.00038821,5]
[321925860,1712637047849,-1239.34,0.00038821,5]
[321925861,1712637047859,-500.0,0.00038821,5]
[321925862,1712637047868,-500.0,0.00038821,5]
[321925863,1712637047877,-1169.08,0.00038821,5]
[321925864,1712637047886,-500.0,0.00038821,5]
[321925865,1712637047895,-500.0,0.00038821,5]
[321925866,1712637047905,-500.0,0.00038821,5]
[321925867,1712637047914,-1952.48,0.00038821,5]
[321925868,1712637047924,-808.48,0.00038821,5]
[321925869,1712637047934,-500.0,0.00038821,5]
[321925870,1712637047943,-500.0,0.00038821,5]
[321925871,1712637047953,-500.0,0.00038821,5]
[321925872,1712637047962,-500.0,0.00038821,5]
[321925873,1712637047971,-500.0,0.00038821,5]
[321925874,1712637047983,-500.0,0.00038821,5]
[321925875,1712637047992,-3256.68,0.00038821,5]
[321925876,1712637048002,-1060.40438319,0.00038821,5]
[321925877,1712637048188,-829.7818463,0.00038821,5]
[321925878,1712637048343,-825.38,0.00038141,2]
[321925879,1712637048352,-825.38,0.00038141,2]
[321925880,1712637048361,-825.38,0.00038141,2]
[321925881,1712637048370,-825.38,0.00038141,2]
[321925882,1712637048379,-448.454977,0.00038273,2]
[321925883,1712637048388,-448.454977,0.00038416,2]
[321925884,1712637048397,-500.0,0.00038547,5]
[321925885,1712637048406,-448.454977,0.00038547,2]
[321925886,1712637048415,-448.454977,0.0003869,2]
[321925887,1712637048424,-791.09377051,0.00038821,5]
[321925888,1712637048432,-500.0,0.00038821,5]
[321925889,1712637048442,-500.0,0.00038821,5]
[321925890,1712637048451,-500.0,0.00038821,5]
[321925891,1712637048460,-500.0,0.00038821,5]
[321925892,1712637048469,-500.0,0.00038821,5]
[321925893,1712637048481,-500.0,0.00038821,5]
[321925894,1712637048490,-500.0,0.00038821,5]
[321925895,1712637048499,-510.38,0.00038821,5]
[321925896,1712637048508,-500.0,0.00038821,5]
[321925897,1712637048518,-514.77074084,0.00038821,5]
[321925898,1712637048527,-500.0,0.00038821,5]
[321925899,1712637048536,-154.920562,0.00038821,2]
[321925900,1712637048545,-500.0,0.00038821,5]
[321925901,1712637048554,-154.920562,0.00038821,2]
[321925902,1712637048563,-215.320044,0.00038821,2]
[321925904,1712637048572,-500.0,0.00038821,5]
[321925906,1712637048582,-500.0,0.00038821,5]
[321925908,1712637048590,-1809.09,0.00038821,5]
[321925910,1712637048599,-151.0,0.00038821,2]
[321925912,1712637048608,-500.0,0.00038821,5]
[321925914,1712637048618,-295.644813,0.00038821,2]
[321925916,1712637048627,-295.644813,0.00038821,2]
[321925918,1712637048636,-151.0,0.00038821,2]
[321925920,1712637048645,-670.128236,0.00038821,2]
[321925922,1712637048655,-670.128236,0.00038821,2]
[321925924,1712637048665,-500.0,0.00038821,5]
[321925926,1712637048674,-500.0,0.00038821,5]
[321925928,1712637048683,-515.78,0.00038821,5]
[321925930,1712637048692,-151.0,0.00038821,2]
[321925932,1712637048701,-151.0,0.00038821,2]
[321925934,1712637048710,-500.0,0.00038821,5]
[321925936,1712637048719,-151.0,0.00038821,2]
[321925938,1712637048728,-151.0,0.00038821,2]
[321925939,1712637048739,-500.0,0.00038821,5]
[321925941,1712637048749,-500.0,0.00038821,5]
[321925943,1712637048757,-500.0,0.00038821,5]
[321925945,1712637048767,-174.52820216,0.00038821,5]
[321925947,1712637048776,-448.454977,0.00038821,2]
[321925949,1712637048785,-323.09533842,0.00038821,5]
[321925952,1712637048801,-253.91877201,0.00038141,2]
[321925983,1712637049085,-213.0,0.0003,2]
[321925985,1712637049095,-571.46122799,0.00038141,2]
[321925987,1712637049104,-825.38,0.00038141,2]
[321925989,1712637049114,-825.38,0.00038141,2]
[321925991,1712637049123,-825.38,0.00038141,2]
[321925993,1712637049132,-825.38,0.00038141,2]
[321925995,1712637049142,-176.90466158,0.00038821,5]
[321925997,1712637049151,-448.454977,0.00038821,2]
[321925999,1712637049160,-500.0,0.00038858,5]
[321926001,1712637049169,-545.71994075,0.00038858,5]
[321926003,1712637049178,-889.35,0.00038858,5]
[321926005,1712637049189,-500.0,0.00038858,5]
[321926007,1712637049201,-500.0,0.00038858,5]
[321926009,1712637049210,-500.0,0.00038858,5]
[321926011,1712637049218,-500.0,0.00038858,5]
[321926013,1712637049228,-1688.494734,0.00038858,2]
[321926015,1712637049238,-500.0,0.00038858,5]
[321926017,1712637049247,-1688.494734,0.00038858,2]
[321926018,1712637049256,-500.0,0.00038858,5]
[321926020,1712637049270,-588.30741412,0.00038858,5]